Cogmind - Beta 14 @@@ ROGUE MODE // 2024.11.12 @ 04:56:39 Player: Serule Result: Destroyed by G-47 Trooper with Particle Gun Performance ------------- Evolutions (0) 0 Regions Visited (2) 400 Robots Destroyed (26) 130 Value Destroyed (554) 554 Prototype IDs (5) 100 Alien Tech Used (0) 0 Bonus (0) 0 TOTAL SCORE: 1184 Bonus ------- None Cogmind --------- Core Integrity 0/250 Matter 211/300 Energy 324/350 System Corruption 1% Temperature Cool (9) Movement Walking (190) Ox1 Location -10/Subcaves Parts ------- > --- POWER (1+3) ------ Ion Engine Subdweller Power Source (+) > --- PROPULSION (2) --- Aluminum Leg Aluminum Leg > --- UTILITY (2) ------ Large Storage Unit Power Bank > --- WEAPON (2) ------- Light Cannon Grenade Launcher > --- INVENTORY (15) --- Wheel Wheel Heat Sink Heat Sink Large Storage Unit Large Matter Pod (150) Visual Processing Unit Improved Terrain Scanner Terrain Scan Processor Utility Shielding Beam Cannon Assault Rifle Autogun Improved Assault Rifle Improved Assault Rifle Peak State ------------ > --- POWER ------------ Ion Engine Subdweller Power Source > --- PROPULSION ------- Aluminum Leg Aluminum Leg > --- UTILITY ---------- Large Storage Unit Power Bank > --- WEAPON ----------- Light Cannon Grenade Launcher > --- INVENTORY -------- Wheel Wheel Heat Sink Heat Sink Large Storage Unit Large Matter Pod Visual Processing Unit Improved Terrain Scanner Terrain Scan Processor Utility Shielding Beam Cannon Assault Rifle Autogun Improved Assault Rifle Improved Assault Rifle [Rating: 19] Favorites ----------- Power Light Ion Engine Engine Light Ion Engine Propulsion Aluminum Leg Leg Aluminum Leg Utility Large Storage Unit Device Improved Terrain Scanner Storage Large Storage Unit Weapon Light Cannon Energy Cannon Beam Cannon Ballistic Gun Improved Assault Rifle Ballistic Cannon Light Cannon Launcher Grenade Launcher Build | -11 -10 -10 ------- Run | Yrd Mat Sub Slots Evolved . | . . . Power . | . . . Propulsion . | . . . Utility . | . . . Weapon . | . . . Parts Attached 30 | 7 16 7 Power 5 | 1 1 3 Engine 5 | 1 1 3 Core . | . . . Reactor . | . . . Propulsion 4 | 2 2 . Treads . | . . . Leg 4 | 2 2 . Wheel . | . . . Hover . | . . . Flight . | . . . Utility 5 | 2 2 1 Device 2 | 1 . 1 Storage 3 | 1 2 . Processor . | . . . Hackware . | . . . Protection . | . . . Artifact . | . . . Weapon 16 | 2 11 3 Energy Gun . | . . . Energy Cannon 1 | . . 1 Ballistic Gun 7 | 2 5 . Ballistic Cannon 4 | . 3 1 Launcher 4 | . 3 1 Special Weapon . | . . . Impact Weapon . | . . . Slashing Weapon . | . . . Piercing Weapon . | . . . Special Melee Weapon . | . . . Unidentified Prototypes 2 | . 1 1 Parts Lost . | . . . Power . | . . . Propulsion . | . . . Utility . | . . . Weapon . | . . . Highest Loss Streak . | . . . To Critical Strikes . | . . . Average Slot Usage (%) 94 | . 99 89 Engine 13 | . 14 12 Leg 26 | . 27 25 Device 13 | . 14 12 Storage 13 | . 14 12 Ballistic Gun 9 | . 16 2 Ballistic Cannon 10 | . 10 10 Launcher 6 | . . 11 Peak Build Rating 19 | 9 14 19 Average Rating 12 | 7 12 13 On Entrance 7 | . 9 13 Naked Turns . | . . . Heaviest Build 39 | 11 30 39 Greatest Support 20 | 20 20 20 Greatest Overweight (x) 1 | . 1 1 Average Overweight (x) . | . . 1 Largest Inventory Capacity 15 | 8 15 15 Average Capacity 14 | 7 14 15 Most Carried 15 | 6 15 15 Average Carried 13 | 4 13 14 Final Capacity 15 | 8 15 15 Final Carried 15 | 6 15 15 Class Distribution -------------------- 100% | Mutant Dominant Class ---------------- Mutant | -10/Materials Mutant | -10/Subcaves Resources | -11 -10 -10 ----------- Run | Yrd Mat Sub Matter Collected 1043 | 292 546 205 Remotely . | . . . Salvage Created 538 | 119 335 84 Parts 43 | 8 33 2 Haulers Intercepted . | . . . Recyclers Shooed 1 | . 1 . Parts Field Recycled . | . . . Retrieved Matter . | . . . Parts Self-Destructed 8 | . . 8 Prevented . | . . . Kills | -11 -10 -10 ------- Run | Yrd Mat Sub Combat Hostiles Destroyed 15 | . 10 5 Guns 3 | . 3 . Cannons 1 | . 1 . AOE 11 | . 6 5 Classes Destroyed 9 | 2 6 1 Builder 1 | . 1 . Tunneler 3 | 3 . . Recycler 2 | 1 1 . Mechanic 1 | . 1 . Operator 1 | . 1 . Watcher 3 | . 3 . Swarmer 6 | . 6 . Grunt 4 | . 4 . Subdweller 5 | . . 5 Best Kill Streak 5 | 2 5 5 Combat Bots Only 5 | . 4 5 Max Kills in Single Turn 3 | 1 3 2 Gunslinging . | . . . Exploded 2 | . 2 2 Melee . | . . . Uniques/NPCs Destroyed . | . . . Combat | -11 -10 -10 -------- Run | Yrd Mat Sub Hostile Shots Fired 66 | . 40 26 Missed 22 | . 15 7 Damage Taken 725 | . 298 427 Core 251 | . 77 174 Absorbed by Shields . | . . . Regen/Repaired (Parts) 68 | . 68 . Core Remaining (%) 100 | 100 . . Volleys Fired 59 | 11 30 18 Largest 2 | 2 2 2 Hottest 65 | 40 58 65 Shots Fired 110 | 22 57 31 Gun 54 | 22 32 . Cannon 36 | . 17 19 Launcher 20 | . 8 12 Special . | . . . Kinetic 89 | 22 49 18 Thermal 1 | . . 1 Explosive 20 | . 8 12 Electromagnetic . | . . . Robot Hit Streak 15 | 9 15 6 Robot Miss Streak 7 | 2 7 2 Penetration Max . | . . . Secondary Targets . | . . . Shots Hit Robots 48 | 17 19 12 Core Hits 37 | 7 18 12 Critical Kills . | . . . Critical Parts Destroyed . | . . . Critical Strikes 1 | . . 1 Blast 1 | . . 1 Melee Attacks . | . . . Impact . | . . . Slashing . | . . . Piercing . | . . . Sneak Attacks . | . . . Combat Hostiles . | . . . Follow-up Attacks . | . . . Damage Inflicted 1918 | 154 819 945 Guns 407 | 154 253 . Cannons 187 | . 84 103 Explosions 1273 | . 431 842 Melee . | . . . Ramming 51 | . 51 . Kinetic 594 | 154 337 103 Thermal . | . . . Explosive 1273 | . 431 842 Electromagnetic . | . . . Impact . | . . . Slashing . | . . . Piercing . | . . . Highest Corruption 1 | . 1 1 Average Corruption 1 | . 1 1 Corruption Purged . | . . . Corruption Blocked . | . . . Effects 13 | . 3 10 Message Errors 4 | . 2 2 Matter Fused 4 | . . 4 Energy Discharges 1 | . . 1 Data Loss (minor) 1 | . . 1 Data Loss (major) 2 | . 1 1 Misfires 1 | . . 1 Overload Shots . | . . . Overflow Damage 63 | . 43 20 Projectiles 5 | . 5 . Explosions 58 | . 38 20 Melee . | . . . Knockbacks 1 | . 1 . Impact . | . . . Kinetic 1 | . 1 . Secondary . | . . . Self-Inflicted Damage 73 | . 40 33 Shots 3 | . 1 2 Rammed . | . . . Targets Rammed 11 | . 11 . Kicked 11 | . 11 . Crushed . | . . . Highest Temperature 27 | . 27 . Average Temperature 11 | . 11 . Received Heat Transfer 156 | . 54 102 Siege Activations . | . . . Robots Corrupted . | . . . Combat Hostiles . | . . . Parts Fried . | . . . Impact Corruptions . | . . . Robots Melted . | . . . Combat Hostiles . | . . . Parts Melted . | . . . Heat Transferred . | . . . Parts Sabotaged . | . . . Parts Stolen . | . . . Parts Stripped . | . . . Power Chain Reactions . | . . . Alert | -11 -10 -10 ------- Run | Yrd Mat Sub Peak Influence 231 | 20 231 . Initial 13 | . 13 . Average 40 | 9 42 . Maximum Alert Level 1 | . 1 . Low Security (%) 99 | 100 99 . Level 1 . | . . . Level 2 . | . . . Level 3 . | . . . Level 4 . | . . . Level 5 . | . . . High Security . | . . . Max Security . | . . . Squads Dispatched 1 | . 1 . Investigation . | . . . Extermination . | . . . Reinforcement 1 | . 1 . Assault . | . . . Garrison . | . . . Intercept . | . . . Searches Triggered . | . . . Construction Impeded . | . . . Haulers Reinforced . | . . . Active Scanning Responses . | . . . Cargo Convoy Interrupts . | . . . Stealth | -11 -10 -10 --------- Run | Yrd Mat Sub Distress Signals . | . . . Communications Jammed . | . . . Distress Signals . | . . . Times Spotted 26 | . 19 7 Peak Tracking Total 5 | . 5 5 Tactical Retreats . | . . . Traps | -11 -10 -10 ------- Run | Yrd Mat Sub Traps Triggered 1 | . 1 . Indirectly . | . . . Trap Hack Attempts . | . . . Triggered . | . . . Disarmed . | . . . Reprogrammed . | . . . Reused . | . . . Traps Extracted . | . . . Installed . | . . . Triggered . | . . . Machines | -11 -10 -10 ---------- Run | Yrd Mat Sub Machines Disabled 3 | . 3 . Max in Single Turn 2 | . 2 . Machines Repaired . | . . . Machines Dismantled . | . . . Machines Sabotaged . | . . . Overloaded Fab Kills . | . . . Hacking | -11 -10 -10 --------- Run | Yrd Mat Sub Machines Accessed 9 | . 8 1 Terminals 7 | . 7 . Fabricators . | . . . Repair Stations 1 | . 1 . Recycling Units . | . . . Scanalyzers . | . . . Garrison Access . | . . . Total Hacks 25 | . 20 5 Successful 19 | . 14 5 Failed 6 | . 6 . Catastrophic . | . . . Database Lockouts . | . . . Manual . | . . . Terminals 15 | . 15 . Fabricators . | . . . Repair Stations 5 | . 5 . Recycling Units . | . . . Scanalyzers . | . . . Garrison Access . | . . . Terminal Hacks 15 | . 10 5 Record 5 | . . 5 Robot Analysis 1 | . 1 . Prototype ID Bank 2 | . 2 . Emergency Access Points 2 | . 2 . Unreport Threat 1 | . 1 . Locate Traps 1 | . 1 . Dispatch Records 1 | . 1 . Hauler Manifests 1 | . 1 . Zone Layout 1 | . 1 . Fabricator Hacks . | . . . Repair Station Hacks 4 | . 4 . Scan Component 2 | . 2 . Repair 2 | . 2 . Recycling Unit Hacks . | . . . Scanalyzer . | . . . Garrison Access Hacks . | . . . Unauthorized Hacks . | . . . Terminals . | . . . Fabricators . | . . . Repair Stations . | . . . Recycling Units . | . . . Scanalyzers . | . . . Garrison Access . | . . . Data Cores Recovered . | . . . Used . | . . . Hacking Detections 4 | . 4 . Full Trace Events 1 | . 1 . Feedback Events 1 | . 1 . Corruption 1 | . 1 . Feedback Blocked . | . . . Robot Schematics Acquired . | . . . Robots Built . | . . . Authchips . | . . . Time . | . . . Total Robot Build Rating . | . . . Part Schematics Acquired . | . . . Parts Built . | . . . Authchips . | . . . Time . | . . . Total Part Build Rating . | . . . Parts Repaired 2 | . 2 . Time 52 | . 52 . Parts Recycled . | . . . Recycled Matter . | . . . Retrieved Matter . | . . . Retrieved Components . | . . . Parts Scanalyzed . | . . . Part Schematics Acquired . | . . . Parts Damaged . | . . . Bothacking | -11 -10 -10 ------------ Run | Yrd Mat Sub Used RIF Installer . | . . . Robots Hacked . | . . . Non-combat . | . . . Combat . | . . . Robot Hacks Applied . | . . . Relay Couplers Released . | . . . Fabnet Peak Effective % . | . . . Robots Rewired . | . . . Allies Hacked . | . . . Hacks Repelled . | . . . Allies | -11 -10 -10 -------- Run | Yrd Mat Sub Total Allies . | . . . Largest Group . | . . . Highest-Rated Group . | . . . Highest-Rated Ally . | . . . Total Orders . | . . . Ally Attacks . | . . . Total Damage . | . . . Kills . | . . . Allies Corrupted . | . . . Allies Melted . | . . . Intel | -11 -10 -10 ------- Run | Yrd Mat Sub Robot Analysis Total 1 | . 1 . Derelict Logs Recovered . | . . . Drone Launches . | . . . Drone Recoveries . | . . . Exploration | -11 -10 -10 ------------- Run | Yrd Mat Sub Turns Passed 3534 | 125 1774 1635 Spaces Moved 1716 | 67 825 824 Core 5 | 5 . . Treads . | . . . Legs 1711 | 62 825 824 Wheels . | . . . Hover . | . . . Flight . | . . . Fastest Speed 50 | 50 120 190 Average Speed 183 | 114 183 190 Slowest Speed 190 | 120 190 190 Overloaded Moves . | . . . Propulsion Burnouts . | . . . Robots Hopped . | . . . Cave-ins Triggered . | . . . Exploration Rate (%) 50 | 4 100 47 Regions Visited 2 Branch Regions 1 Pre-discovered Areas . | . . . Known Exits Taken . | . . . Unknown Exits Taken 2 | 1 1 . Scrap Searched . | . . . Spaces Dug . | . . . Terrain Destroyed 86 | . 33 53 Melee . | . . . Projectile . | . . . AOE 86 | . 33 53 Terrain Rammed . | . . . Walls Destroyed . | . . . Machines Disabled . | . . . Actions | -11 -10 -10 --------- Run | Yrd Mat Sub Total 1983 | 97 1024 862 Wait 122 | . 112 10 Move 1714 | 66 824 824 Hop . | . . . Pick Up 32 | 13 18 1 Fast Attach 4 | . 3 1 Attach 9 | 7 2 . Detach . | . . . Swap 17 | . 11 6 Drop 15 | . 13 2 Fire 59 | 11 30 18 Melee . | . . . Ram . | . . . Kick 11 | . 11 . Crush . | . . . Escape Stasis . | . . . Rewire . | . . . Trap . | . . . Miscellaneous . | . . . Route ------- -11/Scrapyard -10/Materials (discovered 6 exits: [*Mat x3] / [*Min x2] / *Sub) -10/Subcaves (discovered 3 exits: Mat x2 / Rec) History --------- Turn | Location | Event 43 | -11/Scrapyard | Discovered new exit (range 13) 126 | -11/Scrapyard | Entered Materials 317 | -10/Materials | Build established: Mutant 438 | -10/Materials | Discovered new exit (range 8) 705 | -10/Materials | Discovered new exit (range 15) 1169 | -10/Materials | Discovered new exit (range 10) 1248 | -10/Materials | Discovered new exit (range 14) 1306 | -10/Materials | Repaired Grenade Launcher 1333 | -10/Materials | Repaired Aluminum Leg 1520 | -10/Materials | Discovered new exit (range 10) 1885 | -10/Materials | Discovered new exit (range 9) 1900 | -10/Materials | Entered Subcaves 2034 | -10/Subcaves | Shifting Twisted Machinery released Sub. Laser 2180 | -10/Subcaves | A swath of the cavern ceiling suddenly collapsed 2400 | -10/Subcaves | Visited Clippyterm 2406 | -10/Subcaves | Identified exit to Materials 2406 | -10/Subcaves | Identified exit to Recycling 2406 | -10/Subcaves | Learned 40 Factory zone layouts 2880 | -10/Subcaves | A Subdweller sparked back to life 2889 | -10/Subcaves | Core integrity fell below 50% 2892 | -10/Subcaves | Core integrity fell below 20% 2902 | -10/Subcaves | Shifting Twisted Machinery released Battle Cannon 2919 | -10/Subcaves | Found Prototype Device 2942 | -10/Subcaves | Identified Power Bank 2944 | -10/Subcaves | Attached Power Bank, gained temporary slots: Power x3 3535 | -10/Subcaves | Destroyed by G-47 Trooper with Particle Gun Last Messages --------------- Acquired 18 matter. Subatomizers dissect the Prototype Device. Acquired Prototype Device. The unstable cave ceiling collapses. Identified Power Bank. Core temporarily expanded with Power slot. System corrupted: Matter fused (-8). System corrupted: Energy discharge (-72). System corrupted: Substantial component data lost. SX-1NM(u) tweaks Twisted Machinery. SX-1NM(u) deconstructs Twisted Machinery. Acquired 35 matter. Acquired 10 matter. Acquired 19 matter. Acquired 12 matter. SX-1NM(u) deconstructs Twisted Machinery. Subatomizers dissect the Disposable Heat Sink. Acquired Sub. Power Source. Acquired 32 matter. Subatomizers dissect the Disposable Heat Sink. Map ----- +----------------------------------------------------+ | ?????????????????????????????????????????????????? | | ?????????????????????????????????????????????????? | | ?????????????????????????????????????????????????? | | ?????????????????????????????????????????????????? | | ?????????????????????????????????????????????????? | | ?????????????????????????????????????????????????? | | ?????????????????????????????????????????????????? | | ?????????????????????????????????????????????????? | | ?????????????????????????????????????????????????? | | ?????????????????????????????????????????????????? | | ???????????????????????? #?????????????????????? | | ????????????????????? ?? ?????????????????????? | | ??????????????????# ?? ?????????????????????? | | ?????????????????# ## ?????????????????????? | | ?????????????????? ?????????????????????? | | ?????????????????? ?????????????????????? | | ??????????????????? #?????????????????????? | | ???????????????????# #####?????????????????? | | ?????????????????### ####?#????#???????? | | ????????????????## # ## ?? #??????? | | ???????????????## ?? ##????# | | ???????????????# ???? #????# | | ??????????? # #?????? #????# | | ?????????? g g #???????? #????? | | ?????????? [ #????????? #????? | | ??????????????# &@! ##???????? ###### | | ???????????????# ## #??##????# # | | ???????????????### ?????# ##?## ????# # | | ????????????????????????# #??# ??## # | | ???????????????????????## ##??# ### | | ???????????????????????# ####?### | | ???????????????????????## ##??? | | ???????????????????????## # ##???????# #????? | | ???????????????????????# # #???????## ##????? | | ???????????????????????## #####???## ##????? | | ???????????????????????## # #####& ###### | | ???????????????????????# # | | ???????????????????????# | | ??????????????????# ### ### | | ???????????????????# ## ### ### | | ???????????????????# ### ### ##?? | | ???????????????????## ### #### ### | | ????????????????????# #?# ## | | ????????????????????## ### ## ### | | ?????????????????????# ### ###### #?## | | ?????????????????????######## ## # #??## | | ????????????????????????????# #?#### | | ????????????????????????????# ### # ### ## | | ????????????????????????????#####?##### ### | | ?????????????????????????????????????#" ## | +----------------------------------------------------+ Best States ------------- Heat Dissipation 25 Energy Generation 15 Energy Capacity 250 Matter Stores 300 Matter Capacity 300 Sight Range 16 Terrain Scan Range 16 Terrain Scan Density 10 Evasion (%) 55 Item Schematics ----------------- None Robot Schematics ------------------ None Fabricated ------------ Nothing Alien Tech Used ----------------- None Achievements -------------- Everything Is Under Control Shopping List Challenges ------------ None Game ------ Seed PhasingTiamatAutobeam Manual? 0 Play Time 00:22:29 Cumulative 6.7 hours Start 2024.11.11 @ 19:03:19 End 2024.11.12 @ 04:56:39 Sessions 3 Manual Loads 0 Difficulty Rogue Special Mode None Game No. 6 Rogue 6 Adventurer 0 Explorer 0 Win Type - Total 0 Types 0/0/0/0/0/0/0/0/0 Lore% 3 Gallery% 13 Achievement% 11 Wizard Run 0 Options --------- Layout 1 ASCII 0 Keyboard 0 Movement Mouse Keybinds 0 Fullscreen 2 Font 32/SmallcapsGlow Map View 77x35 Zoom Use 0% Tactical HUD 0 Map Filters NONE Filters NONE Steam 1 RUN: 868bdce4-1351-4555-829a-0672eee7683b